[Event "Titled Tuesday Blitz December 13 Early 2022"]
[White "D`Arruda, Ricardo D."]
[Black "Thiel, Thomas"]
[WhiteFideId "100692"]
[BlackFideId "4615964"]
[WhiteElo "2446"]
[BlackElo "2220"]
[Result "1-0"]
[Round "03"]
[TimeControl "180+1"]
[Date "2022.12.14"]
[WhiteClock "0:02:16"]
[BlackClock "0:02:13"]

1. d4 {[%clk 0:02:55]}  Nf6 {[%clk 0:02:57]} 2. Nf3 {[%clk 0:02:54]}  g6 {[%clk 0:02:57]} 3. Nc3 {[%clk 0:02:53]}  d5 {[%clk 0:02:55]} 4. Bg5 {[%clk 0:02:53]}  Bg7 {[%clk 0:02:54]} 5. Bxf6 {[%clk 0:02:53]}  Bxf6 {[%clk 0:02:54]} 6. e4 {[%clk 0:02:53]}  dxe4 {[%clk 0:02:53]} 7. Nxe4 {[%clk 0:02:54]}  Bg7 {[%clk 0:02:52]} 8. Bc4 {[%clk 0:02:54]}  O-O {[%clk 0:02:51]} 9. O-O {[%clk 0:02:52]}  Bg4 {[%clk 0:02:49]} 10. c3 {[%clk 0:02:52]}  Nc6 {[%clk 0:02:47]} 11. h3 {[%clk 0:02:39]}  Bc8 {[%clk 0:02:37]} 12. Re1 {[%clk 0:02:36]}  e5 {[%clk 0:02:36]} 13. dxe5 {[%clk 0:02:36]}  Nxe5 {[%clk 0:02:37]} 14. Nxe5 {[%clk 0:02:33]}  Bxe5 {[%clk 0:02:36]} 15. Qxd8 {[%clk 0:02:34]}  Rxd8 {[%clk 0:02:34]} 16. Ng5 {[%clk 0:02:35]}  Bf6 {[%clk 0:02:20]} 17. Nxf7 {[%clk 0:02:34]}  Rd2 {[%clk 0:02:16]} 18. Nd6+ {[%clk 0:02:17]}  Kg7 {[%clk 0:02:13]} 19. Ne8+ {[%clk 0:02:16]} 1-0


[Site "https://www.chess.com"]

[Event "Titled Tuesday Blitz December 13 Early 2022"]
[White "De Souza, Cristiano Gomes"]
[Black "Manukyan, Sargis A."]
[WhiteFideId "2151758"]
[BlackFideId "13303970"]
[WhiteElo "2068"]
[BlackElo "2187"]
[Result "0-1"]
[Round "03"]
[TimeControl "180+1"]
[Date "2022.12.14"]
[WhiteClock "0:00:16"]
[BlackClock "0:01:24"]

1. d4 {[%clk 0:03:00]}  c5 {[%clk 0:02:58]} 2. d5 {[%clk 0:03:00]}  e6 {[%clk 0:02:58]} 3. c4 {[%clk 0:03:00]}  exd5 {[%clk 0:02:59]} 4. cxd5 {[%clk 0:03:00]}  a6 {[%clk 0:03:00]} 5. a4 {[%clk 0:03:00]}  d6 {[%clk 0:03:01]} 6. Nc3 {[%clk 0:02:59]}  Ne7 {[%clk 0:03:02]} 7. Nf3 {[%clk 0:02:57]}  Ng6 {[%clk 0:03:01]} 8. h3 {[%clk 0:02:57]}  Be7 {[%clk 0:03:02]} 9. e4 {[%clk 0:02:57]}  O-O {[%clk 0:03:02]} 10. Bd3 {[%clk 0:02:56]}  Nd7 {[%clk 0:03:02]} 11. O-O {[%clk 0:02:54]}  Bf6 {[%clk 0:03:02]} 12. Bd2 {[%clk 0:02:52]}  Rb8 {[%clk 0:02:57]} 13. Rb1 {[%clk 0:02:47]}  Nde5 {[%clk 0:02:56]} 14. Nxe5 {[%clk 0:02:47]}  Nxe5 {[%clk 0:02:57]} 15. Be2 {[%clk 0:02:47]}  c4 {[%clk 0:02:54]} 16. f4 {[%clk 0:02:46]}  Nd3 {[%clk 0:02:54]} 17. Bxd3 {[%clk 0:02:40]}  Qb6+ {[%clk 0:02:53]} 18. Kh2 {[%clk 0:02:38]}  cxd3 {[%clk 0:02:54]} 19. Qf3 {[%clk 0:02:33]}  Qd4 {[%clk 0:02:43]} 20. b3 {[%clk 0:02:20]}  b5 {[%clk 0:02:36]} 21. axb5 {[%clk 0:02:20]}  axb5 {[%clk 0:02:37]} 22. Rfc1 {[%clk 0:02:10]}  Re8 {[%clk 0:02:35]} 23. Re1 {[%clk 0:01:38]}  b4 {[%clk 0:02:27]} 24. Na4 {[%clk 0:01:33]}  Ba6 {[%clk 0:02:10]} 25. Rbc1 {[%clk 0:01:28]}  Rbc8 {[%clk 0:01:55]} 26. g4 {[%clk 0:01:20]}  h6 {[%clk 0:01:51]} 27. Kg2 {[%clk 0:01:17]}  Rc2 {[%clk 0:01:47]} 28. Rxc2 {[%clk 0:01:01]}  dxc2 {[%clk 0:01:46]} 29. Bc1 {[%clk 0:01:01]}  Bd3 {[%clk 0:01:39]} 30. e5 {[%clk 0:00:48]}  dxe5 {[%clk 0:01:35]} 31. fxe5 {[%clk 0:00:44]}  Rxe5 {[%clk 0:01:34]} 32. Rxe5 {[%clk 0:00:37]}  Bxe5 {[%clk 0:01:30]} 33. Bb2 {[%clk 0:00:17]}  Be4 {[%clk 0:01:29]} 34. Bxd4 {[%clk 0:00:16]}  Bxf3+ {[%clk 0:01:28]} 35. Kxf3 {[%clk 0:00:16]}  Bxd4 {[%clk 0:01:24]} 0-1


[Site "https://www.chess.com"]

[Event "Titled Tuesday Blitz December 13 Early 2022"]
[White "Demin, Vladimir"]
[Black "Galchenko, Matvey"]
[WhiteFideId "4167457"]
[BlackFideId "24175480"]
[WhiteElo "2586"]
[BlackElo "2404"]
[Result "1/2-1/2"]
[Round "03"]
[TimeControl "180+1"]
[Date "2022.12.14"]
[WhiteClock "0:00:46"]
[BlackClock "0:00:45"]

1. e4 {[%clk 0:03:00]}  e6 {[%clk 0:02:57]} 2. d4 {[%clk 0:02:50]}  d5 {[%clk 0:02:58]} 3. e5 {[%clk 0:02:50]}  c5 {[%clk 0:02:57]} 4. c3 {[%clk 0:02:50]}  Qb6 {[%clk 0:02:58]} 5. Nf3 {[%clk 0:02:48]}  Nc6 {[%clk 0:02:58]} 6. Na3 {[%clk 0:02:46]}  cxd4 {[%clk 0:02:28]} 7. cxd4 {[%clk 0:02:45]}  Bxa3 {[%clk 0:02:09]} 8. bxa3 {[%clk 0:02:43]}  Nge7 {[%clk 0:02:10]} 9. Bd3 {[%clk 0:02:40]}  Bd7 {[%clk 0:02:09]} 10. Rb1 {[%clk 0:02:39]}  Qa5+ {[%clk 0:02:05]} 11. Qd2 {[%clk 0:02:38]}  b6 {[%clk 0:01:57]} 12. O-O {[%clk 0:02:34]}  O-O {[%clk 0:01:53]} 13. h4 {[%clk 0:02:00]}  Qxd2 {[%clk 0:01:40]} 14. Bxd2 {[%clk 0:01:58]}  h6 {[%clk 0:01:41]} 15. h5 {[%clk 0:01:56]}  Rfc8 {[%clk 0:01:40]} 16. Rfc1 {[%clk 0:01:55]}  Nf5 {[%clk 0:01:36]} 17. Bc3 {[%clk 0:01:54]}  Rab8 {[%clk 0:01:27]} 18. g4 {[%clk 0:01:53]}  Nfe7 {[%clk 0:01:25]} 19. Kg2 {[%clk 0:01:50]}  f6 {[%clk 0:01:22]} 20. Kg3 {[%clk 0:01:47]}  Rf8 {[%clk 0:01:16]} 21. Bb4 {[%clk 0:01:43]}  Rf7 {[%clk 0:01:06]} 22. Bd6 {[%clk 0:01:41]}  Rbf8 {[%clk 0:01:03]} 23. Bg6 {[%clk 0:01:25]}  fxe5 {[%clk 0:00:59]} 24. Bxf7+ {[%clk 0:01:23]}  Rxf7 {[%clk 0:00:59]} 25. Nxe5 {[%clk 0:01:22]}  Nxe5 {[%clk 0:00:59]} 26. Bxe5 {[%clk 0:01:16]}  Nc6 {[%clk 0:00:57]} 27. f4 {[%clk 0:01:14]}  Be8 {[%clk 0:00:56]} 28. Rc3 {[%clk 0:01:11]}  Na5 {[%clk 0:00:48]} 29. Rbc1 {[%clk 0:01:10]}  Nc4 {[%clk 0:00:48]} 30. Rxc4 {[%clk 0:01:04]}  dxc4 {[%clk 0:00:49]} 31. Rxc4 {[%clk 0:01:04]}  Bb5 {[%clk 0:00:49]} 32. Rc8+ {[%clk 0:01:03]}  Rf8 {[%clk 0:00:49]} 33. Rc7 {[%clk 0:00:59]}  Rf7 {[%clk 0:00:49]} 34. Rxf7 {[%clk 0:00:52]}  Kxf7 {[%clk 0:00:50]} 35. Bb8 {[%clk 0:00:52]}  a6 {[%clk 0:00:49]} 36. Bc7 {[%clk 0:00:51]}  Bc4 {[%clk 0:00:49]} 37. Bxb6 {[%clk 0:00:51]}  Bxa2 {[%clk 0:00:50]} 38. Bc5 {[%clk 0:00:49]}  Bb3 {[%clk 0:00:45]} 39. Bd6 {[%clk 0:00:47]}  Bd1 {[%clk 0:00:45]} 40. Be5 {[%clk 0:00:47]}  Be2 {[%clk 0:00:45]} 41. Bd6 {[%clk 0:00:46]}  Bd1 {[%clk 0:00:45]} 42. Bc5 {[%clk 0:00:46]}  Be2 {[%clk 0:00:45]} 43. Bd6 {[%clk 0:00:46]}  Bd1 {[%clk 0:00:45]} 1/2-1/2


[Site "https://www.chess.com"]

[Event "Titled Tuesday Blitz December 13 Early 2022"]
[White "Ezat, Mohamed"]
[Black "Moskvin, Anatoly"]
[WhiteFideId "10600906"]
[BlackFideId "24199990"]
[WhiteElo "2388"]
[BlackElo "2104"]
[Result "1-0"]
[Round "03"]
[TimeControl "180+1"]
[Date "2022.12.14"]
[WhiteClock "0:00:18"]
[BlackClock "0:00:11"]

1. d4 {[%clk 0:03:00]}  Nf6 {[%clk 0:03:00]} 2. Nc3 {[%clk 0:03:00]}  e6 {[%clk 0:03:00]} 3. Bg5 {[%clk 0:02:59]}  Bb4 {[%clk 0:02:59]} 4. e3 {[%clk 0:02:48]}  d5 {[%clk 0:02:52]} 5. Bd3 {[%clk 0:02:46]}  Nbd7 {[%clk 0:02:51]} 6. Nf3 {[%clk 0:02:38]}  h6 {[%clk 0:02:50]} 7. Bh4 {[%clk 0:02:37]}  b6 {[%clk 0:02:27]} 8. O-O {[%clk 0:02:35]}  Bb7 {[%clk 0:02:28]} 9. Ne5 {[%clk 0:02:33]}  Nxe5 {[%clk 0:01:56]} 10. dxe5 {[%clk 0:02:32]}  Bxc3 {[%clk 0:01:57]} 11. bxc3 {[%clk 0:02:30]}  g5 {[%clk 0:01:57]} 12. exf6 {[%clk 0:02:07]}  gxh4 {[%clk 0:01:57]} 13. Qf3 {[%clk 0:02:06]}  Rg8 {[%clk 0:01:41]} 14. a4 {[%clk 0:01:53]}  a5 {[%clk 0:01:39]} 15. Rab1 {[%clk 0:01:49]}  Qd6 {[%clk 0:01:30]} 16. Bb5+ {[%clk 0:01:44]}  Bc6 {[%clk 0:01:10]} 17. Qf4 {[%clk 0:01:21]}  Kd7 {[%clk 0:00:44]} 18. Qxh4 {[%clk 0:01:10]}  Bxb5 {[%clk 0:00:39]} 19. Rxb5 {[%clk 0:01:07]}  Rg6 {[%clk 0:00:40]} 20. c4 {[%clk 0:01:06]}  Rag8 {[%clk 0:00:37]} 21. g3 {[%clk 0:01:05]}  dxc4 {[%clk 0:00:26]} 22. Qxc4 {[%clk 0:00:58]}  Rxg3+ {[%clk 0:00:20]} 23. fxg3 {[%clk 0:00:48]}  Rxg3+ {[%clk 0:00:21]} 24. Kh1 {[%clk 0:00:47]}  Rxe3 {[%clk 0:00:14]} 25. Rb3 {[%clk 0:00:42]}  Re5 {[%clk 0:00:12]} 26. Rd3 {[%clk 0:00:42]}  Rd5 {[%clk 0:00:13]} 27. Rxd5 {[%clk 0:00:41]}  exd5 {[%clk 0:00:14]} 28. Qg4+ {[%clk 0:00:40]}  Kc6 {[%clk 0:00:14]} 29. c4 {[%clk 0:00:39]}  d4 {[%clk 0:00:14]} 30. Qe4+ {[%clk 0:00:37]}  Kc5 {[%clk 0:00:14]} 31. Qf5+ {[%clk 0:00:29]}  Kxc4 {[%clk 0:00:14]} 32. Rc1+ {[%clk 0:00:27]}  Kb3 {[%clk 0:00:13]} 33. Qc2+ {[%clk 0:00:20]}  Ka3 {[%clk 0:00:11]} 34. Ra1+ {[%clk 0:00:17]}  Kb4 {[%clk 0:00:11]} 35. Rb1+ {[%clk 0:00:18]} 1-0


[Site "https://www.chess.com"]

[Event "Titled Tuesday Blitz December 13 Early 2022"]
[White "Fabris, Alberto"]
[Black "Mihailidis, Anastasios"]
[WhiteFideId "801348"]
[BlackFideId "4205588"]
[WhiteElo "2162"]
[BlackElo "2312"]
[Result "1-0"]
[Round "03"]
[TimeControl "180+1"]
[Date "2022.12.14"]
[WhiteClock "0:00:14"]
[BlackClock "0:00:19"]

1. e4 {[%clk 0:03:00]}  c5 {[%clk 0:02:54]} 2. Nf3 {[%clk 0:03:00]}  d6 {[%clk 0:02:54]} 3. d4 {[%clk 0:03:00]}  cxd4 {[%clk 0:02:54]} 4. Nxd4 {[%clk 0:03:00]}  Nf6 {[%clk 0:02:54]} 5. Nc3 {[%clk 0:03:01]}  g6 {[%clk 0:02:55]} 6. Be2 {[%clk 0:02:58]}  Bg7 {[%clk 0:02:55]} 7. O-O {[%clk 0:02:58]}  O-O {[%clk 0:02:56]} 8. Be3 {[%clk 0:02:57]}  Nc6 {[%clk 0:02:56]} 9. f3 {[%clk 0:02:54]}  d5 {[%clk 0:02:53]} 10. Nxc6 {[%clk 0:02:48]}  bxc6 {[%clk 0:02:53]} 11. e5 {[%clk 0:02:45]}  Nd7 {[%clk 0:02:52]} 12. f4 {[%clk 0:02:44]}  e6 {[%clk 0:02:52]} 13. Na4 {[%clk 0:02:38]}  Qe7 {[%clk 0:02:48]} 14. a3 {[%clk 0:02:31]}  c5 {[%clk 0:02:46]} 15. Qd2 {[%clk 0:02:29]}  d4 {[%clk 0:02:45]} 16. Bf2 {[%clk 0:02:28]}  Bb7 {[%clk 0:02:39]} 17. b4 {[%clk 0:02:26]}  Rfd8 {[%clk 0:02:27]} 18. bxc5 {[%clk 0:02:18]}  Nxc5 {[%clk 0:02:27]} 19. Nxc5 {[%clk 0:02:17]}  Qxc5 {[%clk 0:02:26]} 20. Bd3 {[%clk 0:02:12]}  Qd5 {[%clk 0:02:21]} 21. Bg3 {[%clk 0:02:12]}  Bc6 {[%clk 0:02:00]} 22. Rfe1 {[%clk 0:02:06]}  Rac8 {[%clk 0:01:56]} 23. Rab1 {[%clk 0:01:46]}  Ba4 {[%clk 0:01:47]} 24. Rb2 {[%clk 0:01:40]}  Bf8 {[%clk 0:01:44]} 25. Ra1 {[%clk 0:01:32]}  Rb8 {[%clk 0:01:40]} 26. Rxb8 {[%clk 0:01:27]}  Rxb8 {[%clk 0:01:39]} 27. Qe2 {[%clk 0:01:12]}  Bb5 {[%clk 0:01:32]} 28. Bf2 {[%clk 0:01:04]}  Bc6 {[%clk 0:01:22]} 29. Bh4 {[%clk 0:00:56]}  Bh6 {[%clk 0:01:19]} 30. Bg3 {[%clk 0:00:55]}  Bf8 {[%clk 0:01:07]} 31. Bh4 {[%clk 0:00:54]}  h6 {[%clk 0:01:07]} 32. h3 {[%clk 0:00:53]}  a5 {[%clk 0:00:59]} 33. Be1 {[%clk 0:00:52]}  a4 {[%clk 0:00:57]} 34. Kh2 {[%clk 0:00:50]}  h5 {[%clk 0:00:53]} 35. Bh4 {[%clk 0:00:49]}  Bh6 {[%clk 0:00:53]} 36. Bg5 {[%clk 0:00:43]}  Kh7 {[%clk 0:00:50]} 37. Bxh6 {[%clk 0:00:42]}  Kxh6 {[%clk 0:00:51]} 38. Qf2 {[%clk 0:00:39]}  Kg7 {[%clk 0:00:49]} 39. Qg3 {[%clk 0:00:38]}  Bb5 {[%clk 0:00:41]} 40. Rb1 {[%clk 0:00:32]}  Rb7 {[%clk 0:00:35]} 41. Qg5 {[%clk 0:00:27]}  Bc6 {[%clk 0:00:33]} 42. Rxb7 {[%clk 0:00:23]}  Bxb7 {[%clk 0:00:32]} 43. Qf6+ {[%clk 0:00:20]}  Kg8 {[%clk 0:00:33]} 44. Qg5 {[%clk 0:00:18]}  Kh7 {[%clk 0:00:31]} 45. Qg3 {[%clk 0:00:17]}  Bc6 {[%clk 0:00:27]} 46. Qg5 {[%clk 0:00:17]}  Kg7 {[%clk 0:00:27]} 47. Qg3 {[%clk 0:00:17]}  Bb5 {[%clk 0:00:25]} 48. Qg5 {[%clk 0:00:15]}  Bxd3 {[%clk 0:00:24]} 49. cxd3 {[%clk 0:00:16]}  Qd7 {[%clk 0:00:22]} 50. Qf6+ {[%clk 0:00:16]}  Kf8 {[%clk 0:00:21]} 51. Qh8+ {[%clk 0:00:14]}  Ke7 {[%clk 0:00:21]} 52. Qa8 {[%clk 0:00:13]}  Qd5 {[%clk 0:00:16]} 53. Qxd5 {[%clk 0:00:12]}  exd5 {[%clk 0:00:15]} 54. g4 {[%clk 0:00:11]}  hxg4 {[%clk 0:00:14]} 55. hxg4 {[%clk 0:00:12]}  f6 {[%clk 0:00:12]} 56. exf6+ {[%clk 0:00:11]}  Kxf6 {[%clk 0:00:12]} 57. Kg3 {[%clk 0:00:11]}  Kf7 {[%clk 0:00:12]} 58. Kh4 {[%clk 0:00:11]}  Kf6 {[%clk 0:00:12]} 59. Kh3 {[%clk 0:00:11]}  Kf7 {[%clk 0:00:12]} 60. Kg3 {[%clk 0:00:11]}  Kf6 {[%clk 0:00:12]} 61. Kh4 {[%clk 0:00:11]}  Kf7 {[%clk 0:00:12]} 62. Kg5 {[%clk 0:00:11]}  Kg7 {[%clk 0:00:13]} 63. f5 {[%clk 0:00:11]}  gxf5 {[%clk 0:00:13]} 64. Kxf5 {[%clk 0:00:11]}  Kf7 {[%clk 0:00:13]} 65. Ke5 {[%clk 0:00:11]}  Kg6 {[%clk 0:00:14]} 66. Kxd5 {[%clk 0:00:12]}  Kg5 {[%clk 0:00:15]} 67. Kxd4 {[%clk 0:00:12]}  Kxg4 {[%clk 0:00:16]} 68. Kc5 {[%clk 0:00:12]}  Kf4 {[%clk 0:00:17]} 69. d4 {[%clk 0:00:13]}  Kf5 {[%clk 0:00:17]} 70. d5 {[%clk 0:00:13]}  Kf6 {[%clk 0:00:18]} 71. Kc6 {[%clk 0:00:13]}  Kf7 {[%clk 0:00:19]} 72. d6 {[%clk 0:00:13]}  Ke8 {[%clk 0:00:19]} 73. Kc7 {[%clk 0:00:14]} 1-0


[Site "https://www.chess.com"]

[Event "Titled Tuesday Blitz December 13 Early 2022"]
[White "Fernandez Siles, Luis"]
[Black "Yaniuk, Volodymyr"]
[WhiteFideId "2209420"]
[BlackFideId "14133083"]
[WhiteElo "2186"]
[BlackElo "2141"]
[Result "0-1"]
[Round "03"]
[TimeControl "180+1"]
[Date "2022.12.14"]
[WhiteClock "0:00:10"]
[BlackClock "0:01:06"]

1. d4 {[%clk 0:02:56]}  d5 {[%clk 0:02:56]} 2. c4 {[%clk 0:02:56]}  e6 {[%clk 0:02:56]} 3. Nc3 {[%clk 0:02:56]}  a6 {[%clk 0:02:55]} 4. cxd5 {[%clk 0:02:55]}  exd5 {[%clk 0:02:56]} 5. Bf4 {[%clk 0:02:51]}  c6 {[%clk 0:02:52]} 6. e3 {[%clk 0:02:49]}  Bd6 {[%clk 0:02:46]} 7. Bxd6 {[%clk 0:02:48]}  Qxd6 {[%clk 0:02:40]} 8. Bd3 {[%clk 0:02:48]}  Ne7 {[%clk 0:02:39]} 9. Nge2 {[%clk 0:02:34]}  Bg4 {[%clk 0:02:37]} 10. O-O {[%clk 0:02:24]}  Nd7 {[%clk 0:02:34]} 11. Qc2 {[%clk 0:02:24]}  h5 {[%clk 0:02:32]} 12. e4 {[%clk 0:02:09]}  dxe4 {[%clk 0:02:31]} 13. Nxe4 {[%clk 0:02:07]}  Qe6 {[%clk 0:02:26]} 14. Nf4 {[%clk 0:01:53]}  Qh6 {[%clk 0:02:25]} 15. Qd2 {[%clk 0:01:14]}  O-O {[%clk 0:02:20]} 16. h3 {[%clk 0:01:11]}  Bf5 {[%clk 0:02:19]} 17. Qe3 {[%clk 0:01:06]}  Rae8 {[%clk 0:02:10]} 18. Qf3 {[%clk 0:01:05]}  Bxe4 {[%clk 0:02:04]} 19. Bxe4 {[%clk 0:00:48]}  Nf6 {[%clk 0:02:03]} 20. Bc2 {[%clk 0:00:44]}  Rd8 {[%clk 0:02:03]} 21. Rad1 {[%clk 0:00:43]}  Rd7 {[%clk 0:01:52]} 22. Rfe1 {[%clk 0:00:43]}  Rfd8 {[%clk 0:01:52]} 23. Re5 {[%clk 0:00:39]}  Ng6 {[%clk 0:01:37]} 24. Nxg6 {[%clk 0:00:33]}  fxg6 {[%clk 0:01:38]} 25. Re6 {[%clk 0:00:23]}  Qg5 {[%clk 0:01:32]} 26. Bb3 {[%clk 0:00:20]}  Kh7 {[%clk 0:01:30]} 27. d5 {[%clk 0:00:15]}  cxd5 {[%clk 0:01:28]} 28. Rd4 {[%clk 0:00:15]}  Rf8 {[%clk 0:01:20]} 29. Qg3 {[%clk 0:00:14]}  Qc1+ {[%clk 0:01:13]} 30. Kh2 {[%clk 0:00:14]}  Qh6 {[%clk 0:01:11]} 31. Bc2 {[%clk 0:00:13]}  Rff7 {[%clk 0:01:08]} 32. Rh4 {[%clk 0:00:13]}  Rfe7 {[%clk 0:01:07]} 33. Rxe7 {[%clk 0:00:12]}  Rxe7 {[%clk 0:01:08]} 34. Qf3 {[%clk 0:00:12]}  Ne4 {[%clk 0:01:07]} 35. g4 {[%clk 0:00:10]}  Qg5 {[%clk 0:01:06]} 0-1


[Site "https://www.chess.com"]

[Event "Titled Tuesday Blitz December 13 Early 2022"]
[White "Ghosh, Chanchal Kumer"]
[Black "Redzisz, Michal"]
[WhiteFideId "10201858"]
[BlackFideId "21816107"]
[WhiteElo "2058"]
[BlackElo "2136"]
[Result "1-0"]
[Round "03"]
[TimeControl "180+1"]
[Date "2022.12.14"]
[WhiteClock "0:00:18"]
[BlackClock "0:00:09"]

1. e4 {[%clk 0:03:00]}  c5 {[%clk 0:02:57]} 2. Nf3 {[%clk 0:03:00]}  e6 {[%clk 0:02:58]} 3. d4 {[%clk 0:03:01]}  cxd4 {[%clk 0:02:59]} 4. Nxd4 {[%clk 0:03:01]}  Nc6 {[%clk 0:03:00]} 5. Nc3 {[%clk 0:02:59]}  Qc7 {[%clk 0:03:00]} 6. Be2 {[%clk 0:02:59]}  a6 {[%clk 0:03:00]} 7. O-O {[%clk 0:02:58]}  Nf6 {[%clk 0:03:00]} 8. Be3 {[%clk 0:02:58]}  b5 {[%clk 0:02:59]} 9. a3 {[%clk 0:02:41]}  Bb7 {[%clk 0:02:58]} 10. f4 {[%clk 0:02:39]}  Rc8 {[%clk 0:02:33]} 11. e5 {[%clk 0:02:32]}  Nxd4 {[%clk 0:02:33]} 12. Bxd4 {[%clk 0:02:23]}  Nd5 {[%clk 0:02:29]} 13. Ne4 {[%clk 0:01:56]}  Ne3 {[%clk 0:02:14]} 14. Bxe3 {[%clk 0:01:56]}  Bxe4 {[%clk 0:02:14]} 15. c3 {[%clk 0:01:55]}  Bc5 {[%clk 0:02:13]} 16. Bxc5 {[%clk 0:01:53]}  Qxc5+ {[%clk 0:02:14]} 17. Kh1 {[%clk 0:01:53]}  f5 {[%clk 0:02:09]} 18. Bf3 {[%clk 0:01:44]}  Bxf3 {[%clk 0:02:04]} 19. Rxf3 {[%clk 0:01:44]}  g5 {[%clk 0:02:03]} 20. Rd3 {[%clk 0:01:35]}  Qe7 {[%clk 0:01:28]} 21. fxg5 {[%clk 0:01:27]}  Rg8 {[%clk 0:01:20]} 22. Qh5+ {[%clk 0:01:24]}  Kf8 {[%clk 0:01:14]} 23. h4 {[%clk 0:01:19]}  Rc5 {[%clk 0:00:23]} 24. Rad1 {[%clk 0:01:12]}  Rxe5 {[%clk 0:00:23]} 25. Rxd7 {[%clk 0:00:59]}  Re1+ {[%clk 0:00:23]} 26. Kh2 {[%clk 0:00:49]}  Rxd1 {[%clk 0:00:18]} 27. Qxd1 {[%clk 0:00:50]}  Qc5 {[%clk 0:00:14]} 28. Rxh7 {[%clk 0:00:39]}  Qe5+ {[%clk 0:00:13]} 29. Kh1 {[%clk 0:00:39]}  Rg7 {[%clk 0:00:09]} 30. Qd8+ {[%clk 0:00:34]}  Kf7 {[%clk 0:00:09]} 31. Qd7+ {[%clk 0:00:18]}  Kg6 {[%clk 0:00:09]} 32. Rh6# {[%clk 0:00:18]} 1-0


[Site "https://www.chess.com"]

[Event "Titled Tuesday Blitz December 13 Early 2022"]
[White "Goltseva, Ekaterina"]
[Black "Makhmudov, Shukhrat"]
[WhiteFideId "24173770"]
[BlackFideId "14200775"]
[WhiteElo "2200"]
[BlackElo "2135"]
[Result "1-0"]
[Round "03"]
[TimeControl "180+1"]
[Date "2022.12.14"]
[WhiteClock "0:00:09"]
[BlackClock "0:00:10"]

1. d4 {[%clk 0:02:28]}  Nf6 {[%clk 0:02:59]} 2. c4 {[%clk 0:02:28]}  e6 {[%clk 0:02:59]} 3. Nc3 {[%clk 0:02:28]}  Bb4 {[%clk 0:02:58]} 4. e3 {[%clk 0:02:28]}  c5 {[%clk 0:02:59]} 5. Nf3 {[%clk 0:02:27]}  Nc6 {[%clk 0:02:57]} 6. Bd3 {[%clk 0:02:26]}  Bxc3+ {[%clk 0:02:57]} 7. bxc3 {[%clk 0:02:25]}  d6 {[%clk 0:02:58]} 8. e4 {[%clk 0:02:23]}  e5 {[%clk 0:02:57]} 9. d5 {[%clk 0:02:23]}  Ne7 {[%clk 0:02:56]} 10. Nd2 {[%clk 0:02:10]}  Ng6 {[%clk 0:02:56]} 11. h4 {[%clk 0:02:09]}  Nf4 {[%clk 0:02:42]} 12. Bf1 {[%clk 0:02:09]}  Bg4 {[%clk 0:02:38]} 13. f3 {[%clk 0:02:05]}  Bc8 {[%clk 0:02:34]} 14. g3 {[%clk 0:02:05]}  Ng6 {[%clk 0:02:15]} 15. h5 {[%clk 0:01:57]}  Nf8 {[%clk 0:02:08]} 16. Bh3 {[%clk 0:01:57]}  Bxh3 {[%clk 0:02:05]} 17. Rxh3 {[%clk 0:01:57]}  h6 {[%clk 0:02:05]} 18. Nf1 {[%clk 0:01:54]}  Qa5 {[%clk 0:02:01]} 19. Qb3 {[%clk 0:01:51]}  Rb8 {[%clk 0:01:53]} 20. Rb1 {[%clk 0:01:50]}  N8d7 {[%clk 0:01:52]} 21. Bd2 {[%clk 0:01:49]}  Nb6 {[%clk 0:01:50]} 22. Ne3 {[%clk 0:01:47]}  Nh7 {[%clk 0:01:45]} 23. Rh1 {[%clk 0:01:40]}  O-O {[%clk 0:01:43]} 24. Nf5 {[%clk 0:01:38]}  Rfd8 {[%clk 0:01:40]} 25. Kf2 {[%clk 0:01:27]}  f6 {[%clk 0:01:30]} 26. Rh4 {[%clk 0:01:23]}  Ng5 {[%clk 0:01:29]} 27. Ke3 {[%clk 0:01:14]}  Qa6 {[%clk 0:01:23]} 28. f4 {[%clk 0:01:06]}  Nxc4+ {[%clk 0:01:21]} 29. Kd3 {[%clk 0:00:53]}  Nxe4 {[%clk 0:01:11]} 30. Be1 {[%clk 0:00:31]}  Ncd2+ {[%clk 0:01:09]} 31. Qb5 {[%clk 0:00:30]}  Nxb1 {[%clk 0:01:01]} 32. Qxa6 {[%clk 0:00:30]}  bxa6 {[%clk 0:00:56]} 33. Kxe4 {[%clk 0:00:31]}  Rb2 {[%clk 0:00:49]} 34. Kf3 {[%clk 0:00:27]}  Rc2 {[%clk 0:00:44]} 35. Rg4 {[%clk 0:00:27]}  Nxc3 {[%clk 0:00:44]} 36. Rxg7+ {[%clk 0:00:26]}  Kf8 {[%clk 0:00:44]} 37. Bxc3 {[%clk 0:00:22]}  Rxc3+ {[%clk 0:00:44]} 38. Kg4 {[%clk 0:00:22]}  e4 {[%clk 0:00:37]} 39. Rh7 {[%clk 0:00:20]}  Kg8 {[%clk 0:00:28]} 40. Rg7+ {[%clk 0:00:19]}  Kh8 {[%clk 0:00:23]} 41. Re7 {[%clk 0:00:17]}  Rg8+ {[%clk 0:00:18]} 42. Kh4 {[%clk 0:00:17]}  e3 {[%clk 0:00:17]} 43. Nxe3 {[%clk 0:00:15]}  Rd3 {[%clk 0:00:17]} 44. Nf5 {[%clk 0:00:15]}  Rxd5 {[%clk 0:00:15]} 45. Nxh6 {[%clk 0:00:15]}  Rg7 {[%clk 0:00:14]} 46. Re8+ {[%clk 0:00:10]}  Kh7 {[%clk 0:00:14]} 47. Ng4 {[%clk 0:00:11]}  Rf5 {[%clk 0:00:11]} 48. Rf8 {[%clk 0:00:09]}  c4 {[%clk 0:00:09]} 49. Nxf6+ {[%clk 0:00:09]}  Kh6 {[%clk 0:00:10]} 50. Rh8+ {[%clk 0:00:09]}  Rh7 {[%clk 0:00:10]} 51. Rxh7# {[%clk 0:00:09]} 1-0


[Site "https://www.chess.com"]